fUSD/lending_fUSD_20250616
["ID","MTS","AMOUNT","RATE_DAILY","PERIOD"]
[366149811,1750088643516,-1344.57,0.00015997,2]
[366149812,1750088643543,-583.92,0.00015997,2]
[366149813,1750088643569,-490.0,0.00015997,2]
[366149814,1750088643828,-3844.06,0.00015997,2]
[366149815,1750088643862,-1356.38792757,0.00015997,2]
[366149816,1750088643930,-1209.22207243,0.00015997,2]
[366149817,1750088643955,-490.0,0.00015997,2]
[366149818,1750088643981,-490.0,0.00015997,2]
[366149819,1750088644007,-490.0,0.00015997,2]
[366149820,1750088644035,-490.0,0.00015997,2]
[366149821,1750088644061,-500.0,0.00015997,2]
[366149822,1750088644089,-3858.24,0.00015997,2]
[366149823,1750088644117,-561.31,0.00015997,2]
[366149824,1750088644145,-490.0,0.00015997,2]
[366149825,1750088644172,-490.0,0.00015997,2]
[366149826,1750088644198,-490.0,0.00015997,2]
[366149827,1750088644225,-441.22792757,0.00015997,2]
[366149828,1750088644273,-48.77207243,0.00015997,2]
[366149829,1750088644302,-857.3,0.00015997,2]
[366149830,1750088644329,-490.0,0.00015997,2]
[366149831,1750088644355,-490.0,0.00015997,2]
[366149832,1750088644381,-490.0,0.00015997,2]
[366149833,1750088644408,-490.0,0.00015998,2]
[366149834,1750088644435,-1416.07,0.00015998,2]
[366149835,1750088644461,-1127.78,0.00015998,2]
[366149836,1750088644488,-490.0,0.00015998,2]
[366149837,1750088644514,-713.85,0.00015998,2]
[366149838,1750088644541,-500.0,0.00015998,2]
[366149839,1750088644567,-500.0,0.00015998,2]
[366149840,1750088644598,-832.28,0.00015998,2]
[366149841,1750088644626,-1553.94792757,0.00015998,2]
[366149842,1750088644669,-37.46207243,0.00015998,2]
[366149843,1750088644695,-907.35,0.00015998,2]
[366149844,1750088644723,-618.77,0.00015998,2]
[366149845,1750088644749,-1539.54,0.00015998,2]
[366149846,1750088644777,-979.46,0.00015998,2]
[366149847,1750088644807,-958.35,0.00015998,2]
[366149848,1750088644835,-1326.05,0.00015998,2]
[366149849,1750088644861,-1011.67,0.00015998,2]
[366149850,1750088644889,-490.0,0.00015998,2]
[366149851,1750088644916,-1450.96,0.00015998,2]
[366149852,1750088644943,-490.0,0.00015998,2]
[366149853,1750088644977,-190.38792757,0.00015998,2]
[366149854,1750088645117,-747.36207243,0.00015998,2]
[366149855,1750088645144,-490.0,0.00015998,2]
[366149856,1750088645171,-490.0,0.00015998,2]
[366149857,1750088645198,-1409.79,0.00015998,2]
[366149858,1750088645225,-490.0,0.00015998,2]
[366149859,1750088645253,-491.12,0.00015998,2]
[366149860,1750088645280,-1343.91,0.00015998,2]
[366149861,1750088645308,-1287.45,0.00015998,2]
[366149862,1750088645338,-1544.67,0.00015998,2]
[366149863,1750088645366,-490.0,0.00015998,2]
[366149864,1750088645393,-490.0,0.00015998,2]
[366149865,1750088645422,-490.0,0.00015998,2]
[366149866,1750088645450,-235.69792757,0.00015998,2]
[366149867,1750088645576,-1144.95207243,0.00015998,2]
[366149868,1750088645607,-648.14,0.00015998,2]
[366149869,1750088645635,-707.54,0.00015998,2]
[366149870,1750088645663,-733.91,0.00015998,2]
[366149871,1750088645693,-490.0,0.00015998,2]
[366149872,1750088645722,-490.0,0.00015998,2]
[366149873,1750088645750,-490.0,0.00015998,2]
[366149874,1750088645780,-490.0,0.00015998,2]
[366149875,1750088645807,-490.0,0.00015998,2]
[366149876,1750088645835,-490.0,0.00015998,2]
[366149877,1750088645862,-490.0,0.00015998,2]
[366149878,1750088645889,-867.56,0.00015998,2]
[366149879,1750088645916,-869.87,0.00015998,2]
[366149880,1750088645943,-490.0,0.00015998,2]
[366149881,1750088645969,-1091.31,0.00015998,2]
[366149882,1750088646001,-16.71792757,0.00015998,2]
[366149883,1750088646054,-574.45207243,0.00015998,2]
[366149884,1750088646081,-179.77,0.00015998,2]
[366149885,1750088646108,-556.83,0.00015998,2]
[366149886,1750088646134,-813.23,0.00015998,2]
[366149887,1750088646159,-490.0,0.00015998,2]
[366149888,1750088646184,-1112.45,0.00015998,2]
[366149889,1750088646209,-822.95,0.00015998,2]
[366149890,1750088646234,-868.23,0.00015998,2]
[366149891,1750088646259,-818.22,0.00015998,2]
[366149892,1750088646285,-490.0,0.00015998,2]
[366149893,1750088646312,-725.21,0.00015998,2]
[366149894,1750088646339,-2548.65792757,0.00015998,2]
[366149895,1750088646377,-490.0,0.00015996,2]
[366149896,1750088646402,-30.27207243,0.00015998,2]
[366149897,1750088646428,-490.0,0.00015998,2]
[366149898,1750088646455,-5034.54,0.00015998,2]
[366149899,1750088646480,-717.69,0.00015998,2]
[366149900,1750088646505,-490.0,0.00015998,2]
[366149901,1750088646531,-587.58,0.00015998,2]
[366149902,1750088646555,-559.29,0.00015998,2]
[366149903,1750088646582,-866.88,0.00015998,2]
[366149904,1750088646612,-490.0,0.00015998,2]
[366149905,1750088646636,-243.74792757,0.00015998,2]
[366149906,1750088646685,-2319.50207243,0.00015998,2]
[366149907,1750088646711,-709.24,0.00015998,2]
[366149908,1750088646739,-6971.25792757,0.00015998,2]
[366149909,1750088646773,-159.91207243,0.00015998,2]
[366149910,1750088646799,-907.03,0.00015998,2]
[366149911,1750088646826,-5846.54,0.00015998,2]
[366149912,1750088646852,-1684.78,0.00015998,2]
[366149913,1750088646877,-850.77,0.00015998,2]
[366149914,1750088646901,-550.96792757,0.00015998,2]
[366149915,1750088646940,-965.48207243,0.00015998,2]
[366149916,1750088646965,-1523.59,0.00015998,2]
[366149917,1750088646990,-632.57,0.00015998,2]
[366149918,1750088647015,-880.23,0.00015998,2]
[366149919,1750088647040,-980.17,0.00015998,2]
[366149920,1750088647065,-614.62,0.00015998,2]
[366149921,1750088647428,-2979.74,0.00015998,2]
[366149922,1750088647456,-900.65,0.00015998,2]
[366149923,1750088647482,-490.0,0.00015998,2]
[366149924,1750088647507,-32.94792757,0.00015998,2]
[366149925,1750088647552,-457.05207243,0.00015998,2]
[366149926,1750088647580,-9542.94792757,0.00015998,2]
[366149927,1750088647635,-4954.83207243,0.00015998,2]
[366149928,1750088647662,-500.0,0.00015998,2]
[366149929,1750088647691,-1190.85,0.00015998,2]
[366149930,1750088647720,-790.3,0.00015998,2]
[366149931,1750088647749,-1379.74,0.00015998,2]
[366149932,1750088647777,-1184.27792757,0.00015998,2]
[366149933,1750088648325,-20.62207243,0.00015998,2]
[366149934,1750088648351,-1479.43,0.00015998,2]
[366149935,1750088648378,-863.25,0.00015998,2]
[366149936,1750088648404,-490.0,0.00015998,2]
[366149937,1750088648430,-490.0,0.00015998,2]
[366149938,1750088648458,-490.0,0.00015998,2]
[366149939,1750088648488,-2251.44,0.00015998,2]
[366149940,1750088648514,-490.0,0.00015998,2]
[366149941,1750088648540,-861.0,0.00015998,2]
[366149942,1750088648566,-490.0,0.00015998,2]
[366149943,1750088648594,-833.92,0.00015998,2]
[366149944,1750088648621,-699.27,0.00015998,2]
[366149945,1750088648651,-541.06792757,0.00015998,2]
[366149946,1750088648786,-515.86207243,0.00015998,2]
[366149947,1750088648812,-1214.02,0.00015998,2]
[366149948,1750088648838,-490.0,0.00015998,2]
[366149949,1750088648862,-1042.97,0.00015998,2]
[366149950,1750088648888,-754.94,0.00015998,2]
[366149951,1750088648913,-507.84,0.00015998,2]
[366149952,1750088648938,-2826.9,0.00015998,2]
[366149953,1750088648964,-490.0,0.00015998,2]
[366149954,1750088648992,-1274.22,0.00015998,2]
[366149955,1750088649017,-490.0,0.00015998,2]
[366149956,1750088649043,-393.24792757,0.00015998,2]
[366149957,1750088649266,-502.45207243,0.00015998,2]
[366149958,1750088649292,-490.0,0.00015999,2]
[366149959,1750088649317,-490.0,0.00015999,2]
[366149960,1750088649345,-318.42848246,0.00015999,2]
[366149961,1750088649370,-490.84204661,0.00015999,2]
[366149962,1750088649396,-490.0,0.00015999,2]
[366149963,1750088649422,-414.26505352,0.00015999,2]
[366149964,1750088649446,-490.0,0.00015999,2]
[366149965,1750088649471,-491.51568208,0.00015999,2]
[366149966,1750088649496,-252.065,0.00015999,2]
[366149967,1750088649522,-565.1398732,0.00015999,2]
[366149968,1750088649548,-490.0,0.00015999,2]
[366149969,1750088649575,-1017.49,0.00015999,2]
[366149970,1750088649602,-490.0,0.00015999,2]
[366149971,1750088649629,-327.61062631,0.00015999,2]
[366149972,1750088649656,-490.0,0.00015999,2]
[366149973,1750088649683,-490.0,0.00015999,2]
[366149974,1750088649710,-490.0,0.00015999,2]
[366149975,1750088649735,-163.77040321,0.00015999,2]
[366149976,1750088649762,-490.0,0.00015999,2]
[366149977,1750088649788,-492.2422045,0.00015999,2]
[366149978,1750088649813,-64.17855568,0.00015999,2]
[366149979,1750088649853,-425.82144432,0.00015999,2]
[366149980,1750088649879,-490.0,0.00015999,2]
[366149981,1750088649904,-491.06244569,0.00015999,2]
[366149982,1750088649930,-490.0,0.00015999,2]
[366149983,1750088649956,-490.0,0.00015999,2]
[366149984,1750088649981,-490.0,0.00015999,2]
[366149985,1750088650006,-490.0,0.00015999,2]
[366149986,1750088650031,-490.0,0.00015999,2]
[366149987,1750088650056,-494.76089771,0.00015999,2]
[366149988,1750088650080,-490.0,0.00015999,2]
[366149989,1750088650105,-490.0,0.00015999,2]
[366149990,1750088650129,-490.0,0.00015999,2]
[366149991,1750088650153,-4178.35521228,0.00016,2]
[366149992,1750088650192,-10000.0,0.00016,2]
[366149993,1750088650576,-490.0,0.00015996,2]
[366149994,1750088650606,-9510.0,0.00016,2]
[366149995,1750088650642,-10000.0,0.00016,2]
[366149996,1750088650681,-10000.0,0.00016,2]
[366149997,1750088650728,-5808.40607848,0.00016,2]
[366149998,1750088650755,-500.95779333,0.00016,2]
[366149999,1750088650781,-500.0,0.00016,3]
[366150000,1750088650808,-430.09538588,0.00016,2]
[366150001,1750088650835,-637.04,0.00016,2]
[366150002,1750088650861,-454.96,0.00016,2]
[366150003,1750088650887,-300.88,0.00016,2]
[366150004,1750088650913,-300.0,0.00016,2]
[366150005,1750088650939,-150.0,0.00016,2]
[366150006,1750088650964,-163.37,0.00016,2]
[366150007,1750088650989,-461.62,0.00016,2]
[366150008,1750088651014,-292.67074231,0.00016,2]
[366150009,1750088651128,-504.63925769,0.00016,2]
[366150010,1750088651153,-461.62,0.00016,2]
[366150011,1750088651179,-150.0,0.00016,2]
[366150012,1750088651204,-461.26,0.00016,2]
[366150013,1750088651253,490.0,0.00015996,2]
[366150014,1750088651308,490.0,0.00015997,2]
[366150015,1750088651710,490.0,0.00015997,2]
[366150016,1750088651750,490.0,0.00015997,2]
[366150017,1750088651801,250.0,0.00015384,2]
[366150018,1750088651993,879.83,0.00015998,2]
[366150019,1750088652286,490.0,0.00015997,2]
[366150020,1750088652344,153.081709,0.000159,2]
[366150021,1750088652384,490.0,0.00015997,2]
[366150022,1750088652538,490.0,0.00015997,2]
[366150023,1750088653453,300.0,0.00015996,2]
[366150024,1750088654205,490.0,0.00015997,2]
[366150025,1750088654512,490.0,0.00015997,2]
[366150026,1750088654566,632.15,0.00015997,2]
[366150027,1750088654942,490.0,0.00015997,2]
[366150028,1750088655087,490.0,0.00015996,2]
[366150029,1750088655257,254.46028321,0.00015996,2]
[366150030,1750088655492,490.0,0.00015996,2]
[366150031,1750088655882,72.9587501,0.00015997,2]
[366150032,1750088655907,417.0412499,0.00015997,2]
[366150033,1750088655961,490.0,0.00015997,2]
[366150034,1750088656201,490.0,0.00015996,2]
[366150035,1750088656635,490.0,0.00015997,2]
[366150036,1750088657357,490.0,0.00015996,2]
[366150037,1750088657870,201.0,0.00015006,2]
[366150039,1750088659099,490.0,0.00015997,2]
[366150040,1750088659505,1485.07,0.00015997,2]
[366150041,1750088660668,684.59,0.00015996,2]
[366150042,1750088660794,490.0,0.00015997,2]
[366150043,1750088660825,490.0,0.00015996,2]
[366150044,1750088660860,490.0,0.00015996,2]
[366150045,1750088661132,964.05,0.00015997,2]
[366150046,1750088661283,490.0,0.00015996,2]
[366150047,1750088662254,490.0,0.00015998,2]
[366150048,1750088662706,490.0,0.00015997,2]
[366150049,1750088662896,739.74,0.00015996,2]
[366150050,1750088663257,118.5087501,0.00015997,2]
[366150051,1750088663284,371.4912499,0.00015997,2]
[366150052,1750088663635,490.0,0.00015997,2]
[366150053,1750088664247,490.0,0.00015997,2]
[366150054,1750088666181,167.31217374,0.00015997,2]
[366150055,1750088667328,1961.21,0.00015997,2]
[366150056,1750088667726,200.0,0.00015217,2]
[366150057,1750088669211,678.17,0.00015996,2]
[366150058,1750088669627,490.0,0.00015997,2]
[366150059,1750088669776,490.0,0.00015997,2]
[366150060,1750088669904,4661.81657636,0.00015997,2]
[366150061,1750088669936,2172.22342364,0.00015997,2]
[366150062,1750088669991,7827.77657636,0.00015997,2]
[366150063,1750088670022,3665.59342364,0.00015997,2]
[366150064,1750088671175,792.08,0.00015996,2]
[366150065,1750088671401,490.0,0.00015996,2]
[366150066,1750088671575,1351.05,0.00015997,2]
[366150067,1750088672260,490.0,0.00015997,2]
[366150068,1750088672572,490.0,0.00015997,2]
[366150069,1750088672716,490.0,0.00015996,2]
[366150070,1750088673816,1505.94,0.00015997,2]
[366150071,1750088674417,725.33657636,0.00015996,2]
[366150072,1750088674444,481.77342364,0.00015996,2]
[366150073,1750088674674,616.0,0.00015997,2]
[366150074,1750088674895,490.0,0.00015997,2]
[366150075,1750088675023,490.0,0.00015998,2]
[366150076,1750088676947,490.0,0.00015997,2]
[366150078,1750088678476,5602.93,0.00015997,2]
[366150079,1750088679883,1829.29657636,0.00015997,2]
[366150080,1750088679914,913.67342364,0.00015997,2]
[366150081,1750088679982,9086.32657636,0.00015997,2]
[366150082,1750088680014,10000.0,0.00015997,2]
[366150083,1750088680045,10000.0,0.00015997,2]
[366150084,1750088681753,201.0,0.00015006,2]
[366150085,1750088734623,162.31,0.00015135,2]
[366150088,1750088749530,211.1,0.00013699,2]
[366150090,1750088772678,-500.0,0.00015897,2]
[366150091,1750088772706,-600.0,0.00015897,4]
[366150092,1750088772738,-2541.16649081,0.00015897,2]
[366150093,1750088772766,-1200.0,0.00015995,2]
[366150094,1750088772799,-300.0,0.00015995,2]
[366150095,1750088772829,-300.0,0.00015995,2]
[366150096,1750088772857,-170.13717642,0.00015996,2]
[366150097,1750088772885,-629.1,0.00015996,2]
[366150098,1750088772913,-490.0,0.00015996,2]
[366150099,1750088772942,-490.0,0.00015996,2]
[366150100,1750088772971,-490.0,0.00015996,2]
[366150101,1750088772998,-628.91,0.00015996,2]
[366150102,1750088773025,-490.0,0.00015996,2]
[366150103,1750088773053,-704.27,0.00015996,2]
[366150104,1750088773079,-490.0,0.00015996,2]
[366150105,1750088773107,-2020.16,0.00015996,2]
[366150106,1750088773133,-1030.36,0.00015996,2]
[366150107,1750088773160,-490.0,0.00015996,2]
[366150108,1750088773188,-899.44,0.00015996,2]
[366150109,1750088773215,-490.0,0.00015996,2]
[366150110,1750088773241,-46.45633277,0.00015996,2]
[366150111,1750088773404,-355.99855451,0.00015996,2]
[366150112,1750088773433,-4293.0,0.00015996,2]
[366150113,1750088773461,-978.85,0.00015996,2]
[366150114,1750088773488,-613.19,0.00015996,2]
[366150115,1750088773515,-929.08,0.00015996,2]
[366150116,1750088773547,-598.79,0.00015996,2]
[366150117,1750088773578,-2165.19,0.00015996,2]
[366150118,1750088773604,-500.0,0.00015996,2]
[366150119,1750088773720,-549.66,0.00015996,2]
[366150120,1750088773747,-1735.13,0.00015996,2]
[366150121,1750088773773,-490.0,0.00015996,2]
[366150122,1750088773800,-1726.71,0.00015996,2]
[366150123,1750088773827,-64.40144549,0.00015996,2]
[366150124,1750088774279,-1134.81855451,0.00015996,2]
[366150125,1750088774306,-3989.7,0.00015996,2]
[366150126,1750088774334,-883.48,0.00015996,2]
[366150127,1750088774361,-717.63,0.00015996,2]
[366150128,1750088774389,-579.48,0.00015996,2]
[366150129,1750088774417,-1099.38,0.00015996,2]
[366150130,1750088774442,-659.89,0.00015996,2]
[366150131,1750088774469,-447.62987775,0.00015996,2]
[366150132,1750088774496,-784.46,0.00015996,2]
[366150133,1750088774526,-1116.69,0.00015996,2]
[366150134,1750088774553,-490.0,0.00015996,2]
[366150135,1750088774581,-703.96,0.00015996,2]
[366150136,1750088774608,-490.0,0.00015996,2]
[366150137,1750088774638,-490.0,0.00015996,2]
[366150138,1750088774678,-1412.88156774,0.00015996,2]
[366150139,1750088774730,-595.42843226,0.00015996,2]
[366150140,1750088774758,-490.0,0.00015996,2]
[366150141,1750088774787,-1992.37,0.00015996,2]
[366150142,1750088774816,-1401.52,0.00015996,2]
[366150143,1750088774845,-2040.67,0.00015996,2]
[366150144,1750088774874,-8480.01156774,0.00015997,2]
[366150145,1750088774925,-15000.0,0.00015997,2]
[366150146,1750088774975,-15000.0,0.00015997,2]
[366150147,1750088775038,-15000.0,0.00015997,2]
[366150148,1750088775106,-15000.0,0.00015997,2]
[366150149,1750088775147,-15000.0,0.00015997,2]
[366150150,1750088775196,-15000.0,0.00015997,2]
[366150151,1750088775283,-15000.0,0.00015997,2]
[366150152,1750088775336,-15000.0,0.00015997,2]
[366150153,1750088775392,-15000.0,0.00015997,2]
[366150154,1750088775436,-15000.0,0.00015997,2]
[366150155,1750088775484,-15000.0,0.00015997,2]
[366150156,1750088775530,-15000.0,0.00015997,2]
[366150157,1750088775764,-15000.0,0.00015997,2]
[366150158,1750088775820,-15000.0,0.00015997,2]
[366150159,1750088775885,-15000.0,0.00015997,2]
[366150160,1750088775931,-15000.0,0.00015997,2]
[366150161,1750088775992,-15000.0,0.00015997,2]
[366150162,1750088776121,-15000.0,0.00015997,2]
[366150163,1750088776195,-7637.5718558,0.00015997,2]
[366150164,1750088776222,-490.0,0.00015997,2]
[366150165,1750088776248,-490.0,0.00015997,2]
[366150166,1750088776274,-3356.01,0.00015997,2]
[366150167,1750088776300,-490.0,0.00015997,2]
[366150168,1750088776326,-1351.91,0.00015997,2]
[366150169,1750088776351,-490.0,0.00015997,2]
[366150170,1750088776377,-490.0,0.00015997,2]
[366150171,1750088776409,-204.5081442,0.00015997,2]
[366150172,1750088776460,-1253.3018558,0.00015997,2]
[366150173,1750088776490,-490.0,0.00015997,2]
[366150174,1750088776517,-490.0,0.00015997,2]
[366150175,1750088776545,-1399.96,0.00015997,2]
[366150176,1750088776572,-490.0,0.00015997,2]
[366150177,1750088776598,-490.0,0.00015997,2]
[366150178,1750088776625,-524.29,0.00015997,2]
[366150179,1750088776655,-500.0,0.00015997,2]
[366150180,1750088776893,-507.54,0.00015997,2]
[366150181,1750088776943,-415.56596107,0.00015997,2]
[366150182,1750088776972,-978.92,0.00015997,2]
[366150183,1750088777000,-7460.42218313,0.00015997,2]
[366150184,1750088777069,-15000.0,0.00015997,2]
[366150185,1750088777117,-15000.0,0.00015997,2]
[366150186,1750088777260,-15000.0,0.00015997,2]
[366150187,1750088777307,-2201.89215197,0.00015997,2]
[366150188,1750088777347,-1445.52,0.00015997,2]
[366150189,1750088777379,-490.0,0.00015997,2]
[366150190,1750088777408,-490.0,0.00015997,2]
[366150191,1750088777438,-504.6660565,0.00015997,2]
[366150192,1750088777466,-490.0,0.00015997,2]
[366150193,1750088777497,-1871.9,0.00015997,2]
[366150194,1750088777525,-342.70407857,0.00015997,2]
[366150195,1750088777553,-490.0,0.00015997,2]
[366150196,1750088777581,-501.33788604,0.00015997,2]
[366150197,1750088777610,-490.0,0.00015997,2]
[366150198,1750088777639,-643.65,0.00015997,2]
[366150199,1750088777668,-1649.27,0.00015997,2]
[366150200,1750088777698,-490.0,0.00015997,2]
[366150201,1750088777729,-490.0,0.00015997,2]
[366150202,1750088777759,-829.16,0.00015997,2]
[366150203,1750088777791,-863.12,0.00015997,2]
[366150204,1750088777821,-490.0,0.00015997,2]
[366150205,1750088777850,-226.77982692,0.00015997,2]
[366150206,1750088777907,-1222.40017308,0.00015997,2]
[366150207,1750088777938,-490.0,0.00015997,2]
[366150208,1750088777971,-490.0,0.00015997,2]
[366150209,1750088778003,-1043.07,0.00015997,2]
[366150210,1750088778034,-649.6,0.00015997,2]
[366150211,1750088778067,-2541.74,0.00015997,2]
[366150212,1750088778097,-500.0,0.00015997,2]
[366150213,1750088778129,-490.0,0.00015997,2]
[366150214,1750088778159,-490.0,0.00015997,2]
[366150215,1750088778188,-4523.51,0.00015997,2]
[366150216,1750088778217,-1480.31,0.00015997,2]
[366150217,1750088778248,-709.16,0.00015997,2]
[366150218,1750088778278,-370.20982692,0.00015997,2]
[366150219,1750088778347,-119.79017308,0.00015997,2]
[366150220,1750088778378,-490.0,0.00015997,2]
[366150221,1750088778407,-547.64046708,0.00015997,2]
[366150222,1750088778436,-1230.82,0.00015997,2]
[366150223,1750088778465,-490.0,0.00015997,2]
[366150224,1750088778493,-490.0,0.00015997,2]
[366150225,1750088778522,-490.0,0.00015997,2]
[366150226,1750088778551,-490.0,0.00015997,2]
[366150227,1750088778580,-381.45678869,0.00015997,2]
[366150228,1750088778609,-570.77,0.00015997,2]
[366150229,1750088778639,-490.0,0.00015997,2]
[366150230,1750088778670,-9209.52257115,0.00015997,2]
[366150231,1750088778719,-4684.18742885,0.00015997,2]
[366150232,1750088778750,-878.21,0.00015997,2]
[366150233,1750088778780,-490.0,0.00015997,2]
[366150234,1750088778809,-490.0,0.00015997,2]
[366150235,1750088778837,-490.69369714,0.00015997,2]
[366150236,1750088778867,-490.0,0.00015997,2]
[366150237,1750088778895,-490.0,0.00015997,2]
[366150238,1750088778923,-490.0,0.00015997,2]
[366150239,1750088778953,-1323.12,0.00015997,2]
[366150240,1750088778981,-386.45404317,0.00015997,2]
[366150241,1750088779010,-490.0,0.00015997,2]
[366150242,1750088779043,-1116.69,0.00015997,2]
[366150243,1750088779074,-1175.4,0.00015997,2]
[366150244,1750088779103,-490.0,0.00015997,2]
[366150245,1750088779134,-1387.95,0.00015997,2]
[366150246,1750088779165,-127.29483084,0.00015997,2]
[366150247,1750088779268,-540.24516916,0.00015997,2]
[366150248,1750088779299,-738.28,0.00015997,2]
[366150249,1750088779328,-494.70021302,0.00015997,2]
[366150250,1750088779358,-875.05,0.00015997,2]
[366150251,1750088779387,-490.0,0.00015997,2]
[366150252,1750088779416,-490.0,0.00015997,2]
[366150253,1750088779445,-490.0,0.00015997,2]
[366150254,1750088779473,-695.52,0.00015997,2]
[366150255,1750088779501,-530.61,0.00015997,2]
[366150256,1750088779531,-490.0,0.00015997,2]
[366150257,1750088779560,-490.0,0.00015997,2]
[366150258,1750088779587,-490.0,0.00015997,2]
[366150259,1750088779615,-566.53,0.00015997,2]
[366150260,1750088779647,-490.0,0.00015997,2]
[366150261,1750088779676,-500.0,0.00015998,2]
[366150262,1750088779704,-300.0,0.00015998,2]
[366150263,1750088779734,-151.0,0.00016,2]
[366150264,1750088779763,-200.0,0.00016,2]
[366150265,1750088780261,490.0,0.00015997,2]
[366150266,1750088780550,490.0,0.00015996,2]
[366150267,1750088780791,668.56,0.00015997,2]
[366150268,1750088782068,490.0,0.00015997,2]
[366150269,1750088782556,787.14,0.00015996,2]
[366150270,1750088784654,664.22,0.00015997,2]
[366150271,1750088785078,490.0,0.00015997,2]
[366150272,1750088786260,1000.0,0.00015193,2]
[366150273,1750088786305,898.14461782,0.00015996,2]
[366150274,1750088786337,5459.66538218,0.00015996,2]
[366150275,1750088786390,555.4,0.00015997,2]
[366150276,1750088786952,869.74,0.00015997,2]
[366150277,1750088787127,2318.14,0.00015996,2]
[366150278,1750088787404,591.91,0.00015996,2]
[366150279,1750088788514,2109.95,0.00015996,2]
[366150280,1750088790341,490.0,0.00015997,2]
[366150281,1750088791607,2605.19461782,0.00015997,2]
[366150282,1750088791635,3507.60538218,0.00015997,2]
[366150283,1750088791853,593.81,0.00015996,2]
[366150284,1750088793156,2255.52,0.00015997,2]
[366150285,1750088793339,490.0,0.00015997,2]
[366150286,1750088794471,905.82,0.00015997,2]
[366150287,1750088797103,490.0,0.00015997,2]
[366150288,1750088799208,1094.68,0.00015997,2]
[366150289,1750088799260,1761.26,0.00015997,2]
[366150290,1750088799554,796.21,0.00015996,2]
[366150291,1750088800171,490.0,0.00015997,2]
[366150292,1750088800792,490.0,0.00015997,2]
[366150293,1750088801894,204.0,0.00015006,2]
[366150294,1750088801939,1080.05,0.00015997,2]
[366150295,1750088802230,490.0,0.00015997,2]
[366150296,1750088802820,351.04461782,0.00015997,2]
[366150297,1750088802848,143.2749463,0.00015997,2]
[366150298,1750088802945,888.53,0.00015996,2]
[366150299,1750088803312,2883.04,0.00015996,2]
[366150300,1750088803390,709.4,0.00015996,2]
[366150301,1750088804905,5936.85,0.00015997,2]
[366150302,1750088805894,490.0,0.00015997,2]
[366150303,1750088807437,490.0,0.00015997,2]
[366150304,1750088807740,1348.83,0.00015997,2]
[366150305,1750088809490,1134.35,0.00015996,2]
[366150306,1750088809524,530.0,0.00015997,2]
[366150307,1750088809650,445.7250537,0.00015997,2]
[366150308,1750088809678,44.2749463,0.00015997,2]
[366150309,1750088812826,490.0,0.00015996,2]
[366150310,1750088813546,829.26,0.00015996,2]
[366150311,1750088814644,2574.76,0.00015997,2]
[366150312,1750088814768,670.13,0.00015997,2]
[366150313,1750088814901,490.0,0.00015997,2]
[366150314,1750088815299,1112.7,0.00015997,2]
[366150315,1750088816422,2250.809226,0.00015928,2]